Workbook

Sheet sensitivity_analysis
A2: Use this template to show the impact of particular changes on your business plan. Sample figures are included in the version displayed below.
A3: Sensitivity analysis template
A4: Your business name goes here…
D5: 1 | E5: 1.1 | F5: 1.1 | G5: 0.95 | H5: 0.9
A6: Sales | B6: 120000 | D6: =B6*D5 -> 120000 | E6: =D6*E5 -> 132000 | F6: =D6*F5 -> 132000 | G6: =+D6*G5 -> 114000 | H6: =D6*H5 -> 108000
A7: Cost of sales | D7: =D6-D8 -> 54000 | E7: =E6-E8 -> 59400 | F7: =F6-F8 -> 59400 | G7: =G6-G8 -> 51300 | H7: =H6-H8 -> 48600
A8: Gross margin (profit) | B8: 0.55 | D8: =D6*B8 -> 66000 | E8: =E6*B8 -> 72600 | F8: =F6*B8 -> 72600 | G8: =G6*B8 -> 62700 | H8: =H6*B8 -> 59400
A9: Wages & Salaries | D9: 5000 | E9: 6000 | F9: 8000 | G9: 8000 | H9: 7000
A10: Sales and marketing | D10: 6000 | E10: 7000 | F10: 8000 | G10: 9000 | H10: 10000
A11: Administration expenses | D11: 6000 | E11: 7000 | F11: 9000 | G11: 8000 | H11: 7555
A12: Operating expenses | D12: =SUM(D9:D11) -> 17000 | E12: =SUM(E9:E11) -> 20000 | F12: =SUM(F9:F11) -> 25000 | G12: =SUM(G9:G11) -> 25000 | H12: =SUM(H9:H11) -> 24555
A13: Depreciation | D13: 5000 | E13: 6000 | F13: 7000 | G13: 5000 | H13: 4000
A14: Operating income | D14: =D8-D12-D13 -> 44000 | E14: =E8-E12-E13 -> 46600 | F14: =F8-F12-F13 -> 40600 | G14: =G8-G12-G13 -> 32700 | H14: =H8-H12-H13 -> 30845
A15: Interest on loans | D15: 1000 | E15: 995 | F15: 855 | G15: 1100 | H15: 1500
A16: Net Profit before tax | D16: =D14-D15 -> 43000 | E16: =E14-E15 -> 45605 | F16: =F14-F15 -> 39745 | G16: =G14-G15 -> 31600 | H16: =H14-H15 -> 29345

Sheet How to use this Calculator
B6: The Currency Sensitivity Calculator is designed to show you how a very small change in Currency Exchange Rates can have an exponential effect on your bottom line. Follow the notes below to set up the calculator and use the slider bars to see the effect on your profit/loss. If you would like further assistance on how to use the tool and what to do as a result, call our Dealing Team on 01 6094300.
B8: Setting up the calculator
B9: 1. Insert your business' relevant payables/receivables in the blue cells (B5,6,7 & C5,6,7)
B10: 2. For GBP and USD please use the actual currency amount rather than the Euro equivalent
B11: 3. If you do not have a payable or a receivable in a particular currency please put in a zero
B12: 4. Input the currency rates* you want to use in the blue cells (B10 & B11)
B13: 5. Once cells are populated, your EUR profit and margin for the relevant trading period are shown in cells in D9 & D11 respectively
B14: *Rates can be the average rates dealt by the company in 2016, rates as of beginning of this year or the current market rate.
B16: What is the Scenario Analysis telling me?
B17: 1. Input current EUR/GBP & EUR/USD exchange rates in cells H6 & H7
B18: 2. Use the "slider bars" to move the exchange rates up or down
B19: 3. Moving the arrow to the right the rate goes up = GBP or USD weaken versus EUR
B20: 4. Moving the arrow to the left the rate goes down = GBP or USD strengthen versus EUR
B21: 5. The impact of the exchange rate moves on both your business margin and profitability year on year are displayed in cells G9 & G11
B23: Bank of Ireland is regulated by the Central Bank of Ireland. This document is provided for information purposes only and Bank of Ireland is not soliciting any action based upon it. Bank of Ireland believes the information contained herein to be accurate but does not warrant its accuracy nor accepts or assumes any responsibility or liability for such information other than any responsibility it may owe to any party under the European Communities (Markets in Financial Instruments) Regulations 2007 as may be amended from time to time, and under the Financial Conduct Authority rules (as applicable), for any loss or damage caused by any act or omission taken as a result of the information contained in this document. Any investment decision made by a party shall be on the basis of its own research and judgment and not be influenced or based on any view or opinion expressed by Bank of Ireland either in this document or otherwise. This document does not address all risks and cannot be relied on for any investment contract or decision. A party should obtain independent professional advice before making any investment decision. This document reflects current opinion as at November 2017 and is based on information available to Bank of Ireland before that date.

Sheet Calculator
A2: Your business today | F2: Scenario Analysis
B4: Payables | C4: Receivables | D4: Net
A5: Euro | B5: 5000000 | C5: 500000 | D5: =C5-B5 -> -4500000 | F5: Currency | G5: Select Movement | H5: Rate v EUR
A6: Sterling | B6: 500000 | C6: 5000000 | D6: =C6-B6 -> 4500000 | F6: GBP | G6: 8790 | H6: 0.87
A7: US Dollars | B7: 0 | C7: 0 | D7: =C7-B7 -> 0 | F7: USD | G7: 13020 | H7: 1.3
D8: EUR Profit | F8: EUR Profit | H8: EUR Profit Change
A9: Euro | B9: Exchange Rate | D9: =IFERROR(D5+D6/B10+D7/B11,"") -> 672413.7931 | F9: =IFERROR(D5+D6/H6+D7/H7,"") -> 672413.7931 | H9: =IFERROR(F9-D9,"") -> 0
A10: Sterling | B10: 0.87 | D10: EUR % Profit | F10: % Profit | H10: % Profit Change
A11: US Dollars | B11: 1.3 | D11: =IFERROR(D9/($C$5+$C$6/B10+$C$7/B11),"") -> 0.1076356946 | F11: =IFERROR(F9/($C$5+$C$6/H6+$C$7/H7),"") -> 0.1076356946 | H11: =IFERROR(F11-D11,"") -> 0
A19: Currency Matrix | B19: -0.1 | C19: -0.09 | D19: -0.08 | E19: -0.07 | F19: -0.06 | G19: -0.05 | H19: -0.04 | I19: -0.03 | J19: -0.02 | K19: -0.01 | L19: 0 | M19: 0.01 | N19: 0.02 | O19: 0.03 | P19: 0.04 | Q19: 0.05 | R19: 0.06 | S19: 0.07 | T19: 0.08 | U19: 0.09 | V19: 0.1
B20: 10% Weaker | C20: 9% Weaker | D20: 8% Weaker | E20: 7% Weaker | F20: 6% Weaker | G20: 5% Weaker | H20: 4% Weaker | I20: 3% Weaker | J20: 2% Weaker | K20: 1% Weaker | L20: 0% Stronger | M20: 1% Stronger | N20: 2% Stronger | O20: 3% Stronger | P20: 4% Stronger | Q20: 5% Stronger | R20: 6% Stronger | S20: 7% Stronger | T20: 8% Stronger | U20: 9% Stronger | V20: 10% Stronger
A21: EURGBP | B21: 1.1 | C21: 1.09 | D21: 1.08 | E21: 1.07 | F21: 1.06 | G21: 1.05 | H21: 1.04 | I21: 1.03 | J21: 1.02 | K21: 1.01 | L21: 1 | M21: 0.99 | N21: 0.98 | O21: 0.97 | P21: 0.96 | Q21: 0.95 | R21: 0.94 | S21: 0.93 | T21: 0.92 | U21: 0.91 | V21: 0.9
A22: EURUSD | B22: 1.21 | C22: 1.199 | D22: 1.188 | E22: 1.177 | F22: 1.166 | G22: 1.155 | H22: 1.144 | I22: 1.133 | J22: 1.122 | K22: 1.111 | L22: 1.1 | M22: 1.089 | N22: 1.078 | O22: 1.067 | P22: 1.056 | Q22: 1.045 | R22: 1.034 | S22: 1.023 | T22: 1.012 | U22: 1.001 | V22: 0.99
A23: Net Profit
B24: EURGBP
C25: EURUSD 10% Weaker | D25: EURUSD 9% Weaker | E25: EURUSD 8% Weaker | F25: EURUSD 7% Weaker | G25: EURUSD 6% Weaker | H25: EURUSD 5% Weaker | I25: EURUSD 4% Weaker | J25: EURUSD 3% Weaker | K25: EURUSD 2% Weaker | L25: EURUSD 1% Weaker | M25: EURUSD 0% Stronger | N25: EURUSD 1% Stronger | O25: EURUSD 2% Stronger | P25: EURUSD 3% Stronger | Q25: EURUSD 4% Stronger | R25: EURUSD 5% Stronger | S25: EURUSD 6% Stronger | T25: EURUSD 7% Stronger | U25: EURUSD 8% Stronger | V25: EURUSD 9% Stronger | W25: EURUSD 10% Stronger
A26: EURUSD | B26: EURGBP 10% Weaker | C26: -0.2719 | D26: -0.2676 | E26: -0.2633 | F26: -0.2591 | G26: -0.2548 | H26: -0.2505 | I26: -0.2461 | J26: -0.2418 | K26: -0.2374 | L26: -0.2331 | M26: -0.2287 | N26: -0.2243 | O26: -0.2199 | P26: -0.2155 | Q26: -0.2111 | R26: -0.2066 | S26: -0.2022 | T26: -0.1977 | U26: -0.1932 | V26: -0.1887 | W26: -0.1842
B27: EURGBP 9% Weaker | C27: -0.2752 | D27: -0.2709 | E27: -0.2666 | F27: -0.2623 | G27: -0.258 | H27: -0.2536 | I27: -0.2493 | J27: -0.2449 | K27: -0.2406 | L27: -0.2362 | M27: -0.2318 | N27: -0.2274 | O27: -0.223 | P27: -0.2185 | Q27: -0.2141 | R27: -0.2096 | S27: -0.2051 | T27: -0.2007 | U27: -0.1962 | V27: -0.1916 | W27: -0.1871
B28: EURGBP 8% Weaker | C28: -0.2785 | D28: -0.2742 | E28: -0.2699 | F28: -0.2656 | G28: -0.2612 | H28: -0.2569 | I28: -0.2525 | J28: -0.2482 | K28: -0.2438 | L28: -0.2394 | M28: -0.2349 | N28: -0.2305 | O28: -0.2261 | P28: -0.2216 | Q28: -0.2171 | R28: -0.2127 | S28: -0.2082 | T28: -0.2036 | U28: -0.1991 | V28: -0.1946 | W28: -0.19
B29: EURGBP 7% Weaker | C29: -0.2819 | D29: -0.2776 | E29: -0.2733 | F29: -0.2689 | G29: -0.2646 | H29: -0.2602 | I29: -0.2558 | J29: -0.2514 | K29: -0.247 | L29: -0.2426 | M29: -0.2381 | N29: -0.2337 | O29: -0.2292 | P29: -0.2247 | Q29: -0.2202 | R29: -0.2157 | S29: -0.2112 | T29: -0.2067 | U29: -0.2021 | V29: -0.1976 | W29: -0.193
B30: EURGBP 6% Weaker | C30: -0.2854 | D30: -0.281 | E30: -0.2767 | F30: -0.2723 | G30: -0.2679 | H30: -0.2635 | I30: -0.2591 | J30: -0.2547 | K30: -0.2503 | L30: -0.2458 | M30: -0.2414 | N30: -0.2369 | O30: -0.2324 | P30: -0.2279 | Q30: -0.2234 | R30: -0.2189 | S30: -0.2143 | T30: -0.2098 | U30: -0.2052 | V30: -0.2006 | W30: -0.196
B31: EURGBP 5% Weaker | C31: -0.2889 | D31: -0.2845 | E31: -0.2802 | F31: -0.2758 | G31: -0.2714 | H31: -0.267 | I31: -0.2625 | J31: -0.2581 | K31: -0.2536 | L31: -0.2492 | M31: -0.2447 | N31: -0.2402 | O31: -0.2357 | P31: -0.2311 | Q31: -0.2266 | R31: -0.222 | S31: -0.2175 | T31: -0.2129 | U31: -0.2083 | V31: -0.2037 | W31: -0.1991
B32: EURGBP 4% Weaker | C32: -0.2925 | D32: -0.2881 | E32: -0.2837 | F32: -0.2793 | G32: -0.2749 | H32: -0.2704 | I32: -0.266 | J32: -0.2615 | K32: -0.257 | L32: -0.2525 | M32: -0.248 | N32: -0.2435 | O32: -0.239 | P32: -0.2344 | Q32: -0.2299 | R32: -0.2253 | S32: -0.2207 | T32: -0.2161 | U32: -0.2115 | V32: -0.2068 | W32: -0.2022
B33: EURGBP 3% Weaker | C33: -0.2961 | D33: -0.2917 | E33: -0.2873 | F33: -0.2829 | G33: -0.2784 | H33: -0.2739 | I33: -0.2695 | J33: -0.265 | K33: -0.2605 | L33: -0.256 | M33: -0.2514 | N33: -0.2469 | O33: -0.2423 | P33: -0.2378 | Q33: -0.2332 | R33: -0.2286 | S33: -0.224 | T33: -0.2193 | U33: -0.2147 | V33: -0.21 | W33: -0.2054
B34: EURGBP 2% Weaker | C34: -0.2998 | D34: -0.2954 | E34: -0.2909 | F34: -0.2865 | G34: -0.282 | H34: -0.2775 | I34: -0.273 | J34: -0.2685 | K34: -0.264 | L34: -0.2595 | M34: -0.2549 | N34: -0.2503 | O34: -0.2458 | P34: -0.2412 | Q34: -0.2365 | R34: -0.2319 | S34: -0.2273 | T34: -0.2226 | U34: -0.218 | V34: -0.2133 | W34: -0.2086
B35: EURGBP 1% Weaker | C35: -0.3036 | D35: -0.2991 | E35: -0.2946 | F35: -0.2902 | G35: -0.2857 | H35: -0.2812 | I35: -0.2767 | J35: -0.2721 | K35: -0.2676 | L35: -0.263 | M35: -0.2584 | N35: -0.2538 | O35: -0.2492 | P35: -0.2446 | Q35: -0.24 | R35: -0.2353 | S35: -0.2307 | T35: -0.226 | U35: -0.2213 | V35: -0.2166 | W35: -0.2119
B36: EURGBP 0% Stronger | C36: -0.3074 | D36: -0.3029 | E36: -0.2984 | F36: -0.2939 | G36: -0.2894 | H36: -0.2849 | I36: -0.2803 | J36: -0.2758 | K36: -0.2712 | L36: -0.2666 | M36: -0.262 | N36: -0.2574 | O36: -0.2528 | P36: -0.2481 | Q36: -0.2435 | R36: -0.2388 | S36: -0.2341 | T36: -0.2294 | U36: -0.2247 | V36: -0.2199 | W36: -0.2152
B37: EURGBP 1% Stronger | C37: -0.3113 | D37: -0.3068 | E37: -0.3023 | F37: -0.2977 | G37: -0.2932 | H37: -0.2887 | I37: -0.2841 | J37: -0.2795 | K37: -0.2749 | L37: -0.2703 | M37: -0.2657 | N37: -0.261 | O37: -0.2564 | P37: -0.2517 | Q37: -0.247 | R37: -0.2423 | S37: -0.2376 | T37: -0.2329 | U37: -0.2281 | V37: -0.2234 | W37: -0.2186
B38: EURGBP 2% Stronger | C38: -0.3152 | D38: -0.3107 | E38: -0.3062 | F38: -0.3016 | G38: -0.2971 | H38: -0.2925 | I38: -0.2879 | J38: -0.2833 | K38: -0.2787 | L38: -0.274 | M38: -0.2694 | N38: -0.2647 | O38: -0.26 | P38: -0.2553 | Q38: -0.2506 | R38: -0.2459 | S38: -0.2412 | T38: -0.2364 | U38: -0.2316 | V38: -0.2269 | W38: -0.222
B39: EURGBP 3% Stronger | C39: -0.3193 | D39: -0.3147 | E39: -0.3102 | F39: -0.3056 | G39: -0.301 | H39: -0.2964 | I39: -0.2918 | J39: -0.2872 | K39: -0.2825 | L39: -0.2778 | M39: -0.2732 | N39: -0.2685 | O39: -0.2638 | P39: -0.2591 | Q39: -0.2543 | R39: -0.2496 | S39: -0.2448 | T39: -0.24 | U39: -0.2352 | V39: -0.2304 | W39: -0.2256
B40: EURGBP 4% Stronger | C40: -0.3233 | D40: -0.3188 | E40: -0.3142 | F40: -0.3096 | G40: -0.305 | H40: -0.3004 | I40: -0.2957 | J40: -0.2911 | K40: -0.2864 | L40: -0.2817 | M40: -0.277 | N40: -0.2723 | O40: -0.2676 | P40: -0.2628 | Q40: -0.2581 | R40: -0.2533 | S40: -0.2485 | T40: -0.2437 | U40: -0.2389 | V40: -0.234 | W40: -0.2292
B41: EURGBP 5% Stronger | C41: -0.3275 | D41: -0.3229 | E41: -0.3183 | F41: -0.3137 | G41: -0.3091 | H41: -0.3044 | I41: -0.2998 | J41: -0.2951 | K41: -0.2904 | L41: -0.2857 | M41: -0.2809 | N41: -0.2762 | O41: -0.2714 | P41: -0.2667 | Q41: -0.2619 | R41: -0.2571 | S41: -0.2522 | T41: -0.2474 | U41: -0.2426 | V41: -0.2377 | W41: -0.2328
B42: EURGBP 6% Stronger | C42: -0.3318 | D42: -0.3272 | E42: -0.3225 | F42: -0.3179 | G42: -0.3132 | H42: -0.3085 | I42: -0.3039 | J42: -0.2991 | K42: -0.2944 | L42: -0.2897 | M42: -0.2849 | N42: -0.2802 | O42: -0.2754 | P42: -0.2706 | Q42: -0.2658 | R42: -0.2609 | S42: -0.2561 | T42: -0.2512 | U42: -0.2463 | V42: -0.2414 | W42: -0.2365
B43: EURGBP 7% Stronger | C43: -0.3361 | D43: -0.3314 | E43: -0.3268 | F43: -0.3221 | G43: -0.3174 | H43: -0.3127 | I43: -0.308 | J43: -0.3033 | K43: -0.2985 | L43: -0.2938 | M43: -0.289 | N43: -0.2842 | O43: -0.2794 | P43: -0.2746 | Q43: -0.2697 | R43: -0.2649 | S43: -0.26 | T43: -0.2551 | U43: -0.2502 | V43: -0.2453 | W43: -0.2403
B44: EURGBP 8% Stronger | C44: -0.3405 | D44: -0.3358 | E44: -0.3311 | F44: -0.3265 | G44: -0.3217 | H44: -0.317 | I44: -0.3123 | J44: -0.3075 | K44: -0.3027 | L44: -0.2979 | M44: -0.2931 | N44: -0.2883 | O44: -0.2835 | P44: -0.2786 | Q44: -0.2737 | R44: -0.2689 | S44: -0.264 | T44: -0.259 | U44: -0.2541 | V44: -0.2491 | W44: -0.2442
B45: EURGBP 9% Stronger | C45: -0.345 | D45: -0.3403 | E45: -0.3356 | F45: -0.3309 | G45: -0.3261 | H45: -0.3214 | I45: -0.3166 | J45: -0.3118 | K45: -0.307 | L45: -0.3022 | M45: -0.2974 | N45: -0.2925 | O45: -0.2876 | P45: -0.2828 | Q45: -0.2779 | R45: -0.2729 | S45: -0.268 | T45: -0.2631 | U45: -0.2581 | V45: -0.2531 | W45: -0.2481
B46: EURGBP 10% Stronger | C46: -0.3495 | D46: -0.3448 | E46: -0.3401 | F46: -0.3353 | G46: -0.3306 | H46: -0.3258 | I46: -0.321 | J46: -0.3162 | K46: -0.3114 | L46: -0.3065 | M46: -0.3017 | N46: -0.2968 | O46: -0.2919 | P46: -0.287 | Q46: -0.282 | R46: -0.2771 | S46: -0.2721 | T46: -0.2672 | U46: -0.2622 | V46: -0.2571 | W46: -0.2521
B65: EURGBP
C66: EURUSD 10% Weaker | D66: EURUSD 9% Weaker | E66: EURUSD 8% Weaker | F66: EURUSD 7% Weaker | G66: EURUSD 6% Weaker | H66: EURUSD 5% Weaker | I66: EURUSD 4% Weaker | J66: EURUSD 3% Weaker | K66: EURUSD 2% Weaker | L66: EURUSD 1% Weaker | M66: EURUSD 0% Stronger | N66: EURUSD 1% Stronger | O66: EURUSD 2% Stronger | P66: EURUSD 3% Stronger | Q66: EURUSD 4% Stronger | R66: EURUSD 5% Stronger | S66: EURUSD 6% Stronger | T66: EURUSD 7% Stronger | U66: EURUSD 8% Stronger | V66: EURUSD 9% Stronger | W66: EURUSD 10% Stronger
A67: EURUSD | B67: EURGBP 10% Weaker | C67: -1874380.165 | D67: -1859216.013 | E67: -1843771.044 | F67: -1828037.383 | G67: -1812006.861 | H67: -1795670.996 | I67: -1779020.979 | J67: -1762047.661 | K67: -1744741.533 | L67: -1727092.709 | M67: -1709090.909 | N67: -1690725.436 | O67: -1671985.158 | P67: -1652858.482 | Q67: -1633333.333 | R67: -1613397.129 | S67: -1593036.751 | T67: -1572238.514 | U67: -1550988.142 | V67: -1529270.729 | W67: -1507070.707
B68: EURGBP 9% Weaker | C68: -1899401.016 | D68: -1884236.864 | E68: -1868791.894 | F68: -1853058.234 | G68: -1837027.712 | H68: -1820691.846 | I68: -1804041.83 | J68: -1787068.512 | K68: -1769762.384 | L68: -1752113.56 | M68: -1734111.76 | N68: -1715746.287 | O68: -1697006.008 | P68: -1677879.332 | Q68: -1658354.184 | R68: -1638417.98 | S68: -1618057.601 | T68: -1597259.365 | U68: -1576008.993 | V68: -1554291.58 | W68: -1532091.558
B69: EURGBP 8% Weaker | C69: -1924885.216 | D69: -1909721.064 | E69: -1894276.094 | F69: -1878542.434 | G69: -1862511.912 | H69: -1846176.046 | I69: -1829526.029 | J69: -1812552.712 | K69: -1795246.583 | L69: -1777597.76 | M69: -1759595.96 | N69: -1741230.487 | O69: -1722490.208 | P69: -1703363.532 | Q69: -1683838.384 | R69: -1663902.18 | S69: -1643541.801 | T69: -1622743.565 | U69: -1601493.193 | V69: -1579775.78 | W69: -1557575.758
B70: EURGBP 7% Weaker | C70: -1950845.756 | D70: -1935681.604 | E70: -1920236.634 | F70: -1904502.974 | G70: -1888472.451 | H70: -1872136.586 | I70: -1855486.569 | J70: -1838513.252 | K70: -1821207.123 | L70: -1803558.3 | M70: -1785556.5 | N70: -1767191.027 | O70: -1748450.748 | P70: -1729324.072 | Q70: -1709798.924 | R70: -1689862.72 | S70: -1669502.341 | T70: -1648704.105 | U70: -1627453.733 | V70: -1605736.32 | W70: -1583536.298
B71: EURGBP 6% Weaker | C71: -1977296.117 | D71: -1962131.965 | E71: -1946686.996 | F71: -1930953.335 | G71: -1914922.813 | H71: -1898586.948 | I71: -1881936.931 | J71: -1864963.613 | K71: -1847657.485 | L71: -1830008.661 | M71: -1812006.861 | N71: -1793641.388 | O71: -1774901.11 | P71: -1755774.434 | Q71: -1736249.285 | R71: -1716313.081 | S71: -1695952.702 | T71: -1675154.466 | U71: -1653904.094 | V71: -1632186.681 | W71: -1609986.659
B72: EURGBP 5% Weaker | C72: -2004250.295 | D72: -1989086.143 | E72: -1973641.174 | F72: -1957907.513 | G72: -1941876.991 | H72: -1925541.126 | I72: -1908891.109 | J72: -1891917.791 | K72: -1874611.663 | L72: -1856962.839 | M72: -1838961.039 | N72: -1820595.566 | O72: -1801855.288 | P72: -1782728.612 | Q72: -1763203.463 | R72: -1743267.259 | S72: -1722906.88 | T72: -1702108.644 | U72: -1680858.272 | V72: -1659140.859 | W72: -1636940.837
B73: EURGBP 4% Weaker | C73: -2031722.823 | D73: -2016558.671 | E73: -2001113.701 | F73: -1985380.04 | G73: -1969349.518 | H73: -1953013.653 | I73: -1936363.636 | J73: -1919390.318 | K73: -1902084.19 | L73: -1884435.367 | M73: -1866433.566 | N73: -1848068.093 | O73: -1829327.815 | P73: -1810201.139 | Q73: -1790675.991 | R73: -1770739.786 | S73: -1750379.408 | T73: -1729581.171 | U73: -1708330.8 | V73: -1686613.387 | W73: -1664413.364
B74: EURGBP 3% Weaker | C74: -2059728.797 | D74: -2044564.645 | E74: -2029119.676 | F74: -2013386.015 | G74: -1997355.493 | H74: -1981019.628 | I74: -1964369.611 | J74: -1947396.293 | K74: -1930090.165 | L74: -1912441.341 | M74: -1894439.541 | N74: -1876074.068 | O74: -1857333.79 | P74: -1838207.114 | Q74: -1818681.965 | R74: -1798745.761 | S74: -1778385.382 | T74: -1757587.146 | U74: -1736336.774 | V74: -1714619.361 | W74: -1692419.339
B75: EURGBP 2% Weaker | C75: -2088283.909 | D75: -2073119.757 | E75: -2057674.787 | F75: -2041941.127 | G75: -2025910.604 | H75: -2009574.739 | I75: -1992924.722 | J75: -1975951.404 | K75: -1958645.276 | L75: -1940996.453 | M75: -1922994.652 | N75: -1904629.18 | O75: -1885888.901 | P75: -1866762.225 | Q75: -1847237.077 | R75: -1827300.873 | S75: -1806940.494 | T75: -1786142.258 | U75: -1764891.886 | V75: -1743174.473 | W75: -1720974.45
B76: EURGBP 1% Weaker | C76: -2117404.468 | D76: -2102240.316 | E76: -2086795.346 | F76: -2071061.686 | G76: -2055031.164 | H76: -2038695.298 | I76: -2022045.282 | J76: -2005071.964 | K76: -1987765.835 | L76: -1970117.012 | M76: -1952115.211 | N76: -1933749.739 | O76: -1915009.46 | P76: -1895882.784 | Q76: -1876357.636 | R76: -1856421.432 | S76: -1836061.053 | T76: -1815262.817 | U76: -1794012.445 | V76: -1772295.032 | W76: -1750095.009
B77: EURGBP 0% Stronger | C77: -2147107.438 | D77: -2131943.286 | E77: -2116498.317 | F77: -2100764.656 | G77: -2084734.134 | H77: -2068398.268 | I77: -2051748.252 | J77: -2034774.934 | K77: -2017468.806 | L77: -1999819.982 | M77: -1981818.182 | N77: -1963452.709 | O77: -1944712.43 | P77: -1925585.755 | Q77: -1906060.606 | R77: -1886124.402 | S77: -1865764.023 | T77: -1844965.787 | U77: -1823715.415 | V77: -1801998.002 | W77: -1779797.98
B78: EURGBP 1% Stronger | C78: -2177410.468 | D78: -2162246.316 | E78: -2146801.347 | F78: -2131067.686 | G78: -2115037.164 | H78: -2098701.299 | I78: -2082051.282 | J78: -2065077.964 | K78: -2047771.836 | L78: -2030123.012 | M78: -2012121.212 | N78: -1993755.739 | O78: -1975015.461 | P78: -1955888.785 | Q78: -1936363.636 | R78: -1916427.432 | S78: -1896067.053 | T78: -1875268.817 | U78: -1854018.445 | V78: -1832301.032 | W78: -1810101.01
B79: EURGBP 2% Stronger | C79: -2208331.928 | D79: -2193167.776 | E79: -2177722.806 | F79: -2161989.146 | G79: -2145958.624 | H79: -2129622.758 | I79: -2112972.742 | J79: -2095999.424 | K79: -2078693.296 | L79: -2061044.472 | M79: -2043042.672 | N79: -2024677.199 | O79: -2005936.92 | P79: -1986810.244 | Q79: -1967285.096 | R79: -1947348.892 | S79: -1926988.513 | T79: -1906190.277 | U79: -1884939.905 | V79: -1863222.492 | W79: -1841022.47
B80: EURGBP 3% Stronger | C80: -2239890.943 | D80: -2224726.791 | E80: -2209281.822 | F80: -2193548.161 | G80: -2177517.639 | H80: -2161181.774 | I80: -2144531.757 | J80: -2127558.439 | K80: -2110252.311 | L80: -2092603.487 | M80: -2074601.687 | N80: -2056236.214 | O80: -2037495.936 | P80: -2018369.26 | Q80: -1998844.111 | R80: -1978907.907 | S80: -1958547.528 | T80: -1937749.292 | U80: -1916498.92 | V80: -1894781.507 | W80: -1872581.485
B81: EURGBP 4% Stronger | C81: -2272107.438 | D81: -2256943.286 | E81: -2241498.317 | F81: -2225764.656 | G81: -2209734.134 | H81: -2193398.268 | I81: -2176748.252 | J81: -2159774.934 | K81: -2142468.806 | L81: -2124819.982 | M81: -2106818.182 | N81: -2088452.709 | O81: -2069712.43 | P81: -2050585.755 | Q81: -2031060.606 | R81: -2011124.402 | S81: -1990764.023 | T81: -1969965.787 | U81: -1948715.415 | V81: -1926998.002 | W81: -1904797.98
B82: EURGBP 5% Stronger | C82: -2305002.175 | D82: -2289838.023 | E82: -2274393.053 | F82: -2258659.393 | G82: -2242628.871 | H82: -2226293.005 | I82: -2209642.989 | J82: -2192669.671 | K82: -2175363.542 | L82: -2157714.719 | M82: -2139712.919 | N82: -2121347.446 | O82: -2102607.167 | P82: -2083480.491 | Q82: -2063955.343 | R82: -2044019.139 | S82: -2023658.76 | T82: -2002860.524 | U82: -1981610.152 | V82: -1959892.739 | W82: -1937692.717
B83: EURGBP 6% Stronger | C83: -2338596.8 | D83: -2323432.648 | E83: -2307987.678 | F83: -2292254.018 | G83: -2276223.496 | H83: -2259887.63 | I83: -2243237.613 | J83: -2226264.296 | K83: -2208958.167 | L83: -2191309.344 | M83: -2173307.544 | N83: -2154942.071 | O83: -2136201.792 | P83: -2117075.116 | Q83: -2097549.968 | R83: -2077613.764 | S83: -2057253.385 | T83: -2036455.149 | U83: -2015204.777 | V83: -1993487.364 | W83: -1971287.342
B84: EURGBP 7% Stronger | C84: -2372913.89 | D84: -2357749.738 | E84: -2342304.768 | F84: -2326571.107 | G84: -2310540.585 | H84: -2294204.72 | I84: -2277554.703 | J84: -2260581.385 | K84: -2243275.257 | L84: -2225626.434 | M84: -2207624.633 | N84: -2189259.161 | O84: -2170518.882 | P84: -2151392.206 | Q84: -2131867.058 | R84: -2111930.854 | S84: -2091570.475 | T84: -2070772.238 | U84: -2049521.867 | V84: -2027804.454 | W84: -2005604.431
B85: EURGBP 8% Stronger | C85: -2407977.003 | D85: -2392812.851 | E85: -2377367.882 | F85: -2361634.221 | G85: -2345603.699 | H85: -2329267.834 | I85: -2312617.817 | J85: -2295644.499 | K85: -2278338.371 | L85: -2260689.547 | M85: -2242687.747 | N85: -2224322.274 | O85: -2205581.996 | P85: -2186455.32 | Q85: -2166930.171 | R85: -2146993.967 | S85: -2126633.588 | T85: -2105835.352 | U85: -2084584.98 | V85: -2062867.567 | W85: -2040667.545
B86: EURGBP 9% Stronger | C86: -2443810.735 | D86: -2428646.583 | E86: -2413201.613 | F86: -2397467.953 | G86: -2381437.43 | H86: -2365101.565 | I86: -2348451.549 | J86: -2331478.231 | K86: -2314172.102 | L86: -2296523.279 | M86: -2278521.479 | N86: -2260156.006 | O86: -2241415.727 | P86: -2222289.051 | Q86: -2202763.903 | R86: -2182827.699 | S86: -2162467.32 | T86: -2141669.084 | U86: -2120418.712 | V86: -2098701.299 | W86: -2076501.276
B87: EURGBP 10% Stronger | C87: -2480440.771 | D87: -2465276.619 | E87: -2449831.65 | F87: -2434097.989 | G87: -2418067.467 | H87: -2401731.602 | I87: -2385081.585 | J87: -2368108.267 | K87: -2350802.139 | L87: -2333153.315 | M87: -2315151.515 | N87: -2296786.042 | O87: -2278045.764 | P87: -2258919.088 | Q87: -2239393.939 | R87: -2219457.735 | S87: -2199097.357 | T87: -2178299.12 | U87: -2157048.748 | V87: -2135331.335 | W87: -2113131.313
E92: Levels
A93: EURGBP 10% Weaker | B93: Strenght | C93: Indic | E93: 10% Stronger
A94: EURGBP 9% Weaker | B94: 10% Stronger | C94: 1 | E94: 9% Stronger
A95: EURGBP 8% Weaker | B95: 9% Stronger | C95: 2 | E95: 8% Stronger
A96: EURGBP 7% Weaker | B96: 8% Stronger | C96: 3 | E96: 7% Stronger
A97: EURGBP 6% Weaker | B97: 7% Stronger | C97: 4 | E97: 6% Stronger
A98: EURGBP 5% Weaker | B98: 6% Stronger | C98: 5 | E98: 5% Stronger
A99: EURGBP 4% Weaker | B99: 5% Stronger | C99: 6 | E99: 4% Stronger
A100: EURGBP 3% Weaker | B100: 4% Stronger | C100: 7 | E100: 3% Stronger
A101: EURGBP 2% Weaker | B101: 3% Stronger | C101: 8 | E101: 2% Stronger
A102: EURGBP 1% Weaker | B102: 2% Stronger | C102: 9 | E102: 1% Stronger
A103: EURGBP 0% Stronger | B103: 1% Stronger | C103: 10 | E103: 1% Weaker
A104: EURGBP 1% Stronger | B104: 1% Weaker | C104: 11 | E104: 2% Weaker
A105: EURGBP 2% Stronger | B105: 2% Weaker | C105: 12 | E105: 3% Weaker
A106: EURGBP 3% Stronger | B106: 3% Weaker | C106: 13 | E106: 4% Weaker
A107: EURGBP 4% Stronger | B107: 4% Weaker | C107: 14 | E107: 5% Weaker
A108: EURGBP 5% Stronger | B108: 5% Weaker | C108: 15 | E108: 6% Weaker
A109: EURGBP 6% Stronger | B109: 6% Weaker | C109: 16 | E109: 7% Weaker
A110: EURGBP 7% Stronger | B110: 7% Weaker | C110: 17 | E110: 8% Weaker
A111: EURGBP 8% Stronger | B111: 8% Weaker | C111: 18 | E111: 9% Weaker
A112: EURGBP 9% Stronger | B112: 9% Weaker | C112: 19 | E112: 10% Weaker
A113: EURGBP 10% Stronger | B113: 10% Weaker | C113: 20 | E113: No Change
